[Event "45th FIDE Olympiad 2024"]
[Site "Budapest"]
[Date "2024.09.13"]
[Round "3.5"]
[White "Dragnev, Valentin"]
[Black "Rapport, Richard"]
[Result "1/2-1/2"]
[ECO "B31"]
[WhiteElo "2556"]
[BlackElo "2715"]
[Annotator "TA"]
[PlyCount "148"]
[EventDate "2024.09.05"]
[EventType "team-tourn"]
[EventCountry "HUN"]
[SourceTitle "playchess.com"]
[Source "ChessBase"]
[SourceQuality "1"]
[WhiteTeam "Austria"]
[BlackTeam "Hungary"]
[WhiteTeamCountry "AUT"]
[BlackTeamCountry "HUN"]
[TimeControl "40/5400+30:1800+30"]

{[%evp 76,148,-14,-10,-14,-55,-8,-9,-8,-8,-5,-5,-8,-8,-8,-8,0,-10,0,0,0,0,0,0,0,-22,-22,-22,0,-9,0,-9,0,0,0,0,0,0,0,0,0,0,0,0,0,0,0,0,0,0,0,0,0,0,0,0,0,0,0,0,0,0,0,0,0,0,0,0,0,0,0,0,0,0,0]} 1. e4 {[%emt 0:00:04]} c5 {[%emt 0:00:51]} 2. Nf3 {[%emt 0:00:07]} Nc6 {[%emt 0:00:32]} 3. Bb5 {[%emt 0:00:31]} g6 {[%emt 0:00:17]} 4. O-O {[%emt 0:00:58]} Bg7 {[%emt 0:00:17]} 5. Re1 {[%emt 0:00:21]} e5 {[%emt 0:00:22]} 6. Bxc6 {[%emt 0:00:59]} dxc6 {[%emt 0:00:07]} 7. d3 {[%emt 0:00:14]} Qe7 {[%emt 0:00:10]} 8. a4 {[%emt 0:00:25]} Nf6 {[%emt 0:01:44]} 9. a5 {[%emt 0:03:04]} O-O {[%emt 0:00:31]} 10. Na3 {[%emt 0:01:09]} b5 {[%emt 0:07:17]} 11. axb6 {[%emt 0:22:01]} axb6 {[%emt 0:00:50]} 12. Bg5 {[%emt 0:00:20]} h6 {[%emt 0:12:55]} 13. Bxf6 {[%emt 0:02:58]} Bxf6 {[%emt 0:01:38]} 14. Nc4 {[%emt 0:01:16]} Rb8 {[%emt 0:06:23]} 15. Qd2 {[%emt 0:03:55]} Bg7 {[%emt 0:00:46]} 16. h3 {[%emt 0:01:23]} b5 {[%emt 0:06:07]} 17. Na5 {[%emt 0:02:32]} Bd7 {[%emt 0:00:29]} 18. Nb3 {[%emt 0:09:22]} Be6 {[%emt 0:10:56]} 19. Qc3 {[%emt 0:11:33]} c4 {[%emt 0:03:25]} 20. Na5 {[%emt 0:08:02]} Rbc8 {[%emt 0:01:24]} 21. dxc4 {[%emt 0:00:53]} f5 {[%emt 0:00:05]} 22. Qe3 {[%emt 0:10:15]} f4 {[%emt 0:09:12]} 23. Qb6 {[%emt 0:01:52]} Qe8 {[%emt 0:09:34]} 24. Qc5 {[%emt 0:01:37]} g5 {[%emt 0:01:31]} 25. Nb7 {[%emt 0:03:12]} Rc7 {[%emt 0:01:01]} 26. Nd6 {[%emt 0:00:25]} Qe7 {[%emt 0:00:36]} 27. Nxe5 {[%emt 0:01:45]} Bxh3 {[%emt 0:03:52]} 28. Ng6 {[%emt 0:08:02]} Qe6 {[%emt 0:00:57]} 29. Nf5 {[%emt 0:00:09]} Qxg6 {[%emt 0:00:38]} 30. gxh3 {[%emt 0:00:05]} Rff7 {[%emt 0:07:45]} 31. Ra8+ {[%emt 0:02:38]} Kh7 {[%emt 0:00:17]} 32. Nd6 {[%emt 0:01:08]} Bf8 {[%emt 0:02:05]} 33. e5 {[%emt 0:00:33]} g4 {[%emt 0:00:01]} 34. h4 {[%emt 0:00:48]} g3 {[%emt 0:00:05]} 35. Qd4 {[%emt 0:02:00]} gxf2+ {[%emt 0:07:13]} 36. Kxf2 {[%emt 0:00:02]} Qg3+ {[%emt 0:00:06]} 37. Ke2 {[%emt 0:01:38]} Bxd6 {[%emt 0:00:35]} 38. Qe4+ {[%emt 0:00:12]} Kg7 {[%emt 0:00:02]} 39. exd6 {[%emt 0:00:24]} f3+ {[%emt 0:00:08]} 40. Kd1 {[%emt 0:00:58]} f2 {[%emt 0:06:40]} (40... Qxd6+ $15 41. Kc1 Qf4+ 42. Qxf4 Rxf4 43. cxb5 cxb5 (43... Rxh4 44. Rg1+ Kh7 45. b6 $11) (43... f2 44. Rf1 $15)) 41. Rf1 $11 {[%emt 0:05:40]} Qxd6+ {[%emt 0:01:14]} 42. Kc1 $1 {[%emt 0:00:44]} Qf4+ {[%emt 0:00:44]} 43. Qxf4 {[%emt 0:00:06]} Rxf4 {[%emt 0:00:02]} 44. cxb5 {[%emt 0:01:44]} cxb5 {[%emt 0:05:41]} (44... Rxh4 45. bxc6 (45. Rxf2 cxb5 46. Rb8 Rh5 $11) 45... Rf4 46. Ra6 $17) 45. Ra3 {[%emt 0:02:54]} Kf6 {[%emt 0:05:59]} (45... Rxh4 $2 46. Rg3+ (46. Rxf2 Rh1+ 47. Kd2 Rd7+ 48. Rd3 Rxd3+ 49. Kxd3 Rd1+ 50. Ke2 Rc1 $11) 46... Kh7 47. Rxf2 $17) 46. Re3 {[%emt 0:06:00]} Rf7 {[%emt 0:01:54]} (46... Rxh4 47. Rxf2+ Kg7 48. Re5) 47. Kd2 {[%emt 0:04:36]} Kf5 {[%emt 0:01:05]} (47... Rxh4 48. Rxf2+ Kg7 49. Rg2+ Kh7 50. Kc3 $11) 48. Rg3 $1 {[%emt 0:01:02]} b4 {[%emt 0:01:44]} (48... Rxh4 49. Rxf2+ Rf4 50. Rh2) 49. Ke2 {[%emt 0:03:15]} Ke5 {[%emt 0:01:12]} (49... Rxh4 $2 50. Rxf2+ Ke6 51. Re3+ Kd6 52. Rxf7 $18) 50. Re3+ {[%emt 0:04:47]} Kd5 {[%emt 0:00:18]} 51. h5 {[%emt 0:01:30]} R7f5 {[%emt 0:00:56]} 52. Rd3+ {[%emt 0:02:06]} Kc6 {[%emt 0:03:08]} 53. c3 {[%emt 0:01:02]} b3 {[%emt 0:01:22]} (53... Rxh5 54. Rxf2 Rxf2+ 55. Kxf2) 54. c4 {[%emt 0:00:01]} Rxh5 {[%emt 0:03:59]} (54... Rxc4 55. Rxb3 Re4+ (55... Rxh5 56. Kxf2 Rf4+ 57. Rf3 $11) 56. Re3) 55. Rxb3 {[%emt 0:00:20]} Rhf5 {[%emt 0:00:04]} (55... Rxc4 56. Rxf2 Rc2+ 57. Kf1 Rh1+ 58. Kg2) 56. Rb5 {[%emt 0:01:23]} Rf6 {[%emt 0:00:31]} 57. Ra5 {[%emt 0:01:06]} Rf8 {[%emt 0:01:18]} (57... Rxc4 $2 {loses.} 58. Ra6+ (58. Rxf2 $2 {perishes.} Rc2+ 59. Kd1 Rcxf2 $19) 58... Kd5 59. Rxf6 $18) 58. Rh5 {[%emt 0:00:43]} R4f6 {[%emt 0:02:23]} 59. Re5 {[%emt 0:00:33]} Rb8 {[%emt 0:00:25]} 60. Rb5 {[%emt 0:00:29]} Re6+ {[%emt 0:00:53]} 61. Kd2 {[%emt 0:00:09]} Rd6+ {[%emt 0:00:10]} 62. Kc2 {[%emt 0:00:39]} Rf8 {[%emt 0:00:05]} 63. Ra5 {[%emt 0:00:40]} Rd4 {[%emt 0:01:05]} 64. b3 {[%emt 0:00:25]} Rh4 {[%emt 0:00:25]} 65. Re5 {[%emt 0:00:22]} h5 {[%emt 0:00:35]} 66. Kd2 {[%emt 0:00:21]} Rh2 {[%emt 0:01:21]} 67. Ke2 {[%emt 0:00:21]} h4 {[%emt 0:00:13]} 68. Re3 {[%emt 0:00:42]} h3 {[%emt 0:00:11]} 69. b4 {[%emt 0:00:28]} Rh8 {[%emt 0:00:13]} 70. Rf3 {[%emt 0:00:35]} Re8+ {[%emt 0:02:15]} 71. Kd2 {[%emt 0:00:28]} Ra8 {[%emt 0:00:13]} 72. Ke3 {[%emt 0:00:51]} Re8+ {[%emt 0:01:21]} 73. Kd2 {[%emt 0:00:13]} Rh8 {[%emt 0:00:59]} 74. Ke2 {[%emt 0:00:16]} Re8+ {[%emt 0:01:36]} 1/2-1/2

[Event "45th FIDE Olympiad 2024"]
[Site "Budapest"]
[Date "2024.09.13"]
[Round "3.5"]
[White "Giasi, Viresh"]
[Black "Laohawirapap, Prin"]
[Result "0-1"]
[ECO "A48"]
[WhiteElo "1998"]
[BlackElo "2380"]
[Annotator "RC"]
[PlyCount "56"]
[EventDate "2024.09.05"]
[EventType "team-tourn"]
[EventCountry "HUN"]
[SourceTitle "playchess.com"]
[Source "ChessBase"]
[SourceQuality "1"]
[WhiteTeam "Suriname"]
[BlackTeam "Thailand"]
[WhiteTeamCountry "SUR"]
[BlackTeamCountry "THA"]
[TimeControl "40/5400+30:1800+30"]

1. d4 Nf6 2. Nf3 g6 3. h3 Bg7 4. Bf4 O-O 5. e3 d6 6. Be2 Nc6 7. O-O e5 8. Bh2 Qe7 9. a3 Ne4 10. Bb5 Kh8 11. Bxc6 bxc6 12. Nbd2 Nxd2 13. Qxd2 e4 14. Ne1 Ba6 15. c3 Rab8 16. b4 Bxf1 17. Kxf1 f5 18. Qa2 g5 19. Qc4 Rb6 20. Nc2 f4 21. a4 d5 22. Qa2 Rf5 23. h4 h6 24. hxg5 hxg5 25. Ke2 Qf7 26. g4 Rf6 27. exf4 Rh6 28. Bg1 gxf4 0-1

[Event "45th FIDE Olympiad 2024"]
[Site "Budapest"]
[Date "2024.09.13"]
[Round "3.6"]
[White "Leko, Peter"]
[Black "Ragger, Markus"]
[Result "1/2-1/2"]
[ECO "C77"]
[WhiteElo "2666"]
[BlackElo "2601"]
[Annotator "TA"]
[PlyCount "52"]
[EventDate "2024.09.05"]
[EventType "team-tourn"]
[EventCountry "HUN"]
[SourceTitle "playchess.com"]
[Source "ChessBase"]
[SourceQuality "1"]
[WhiteTeam "Hungary"]
[BlackTeam "Austria"]
[WhiteTeamCountry "HUN"]
[BlackTeamCountry "AUT"]
[TimeControl "40/5400+30:1800+30"]

{[%evp 16,52,10,0,18,12,17,9,12,6,10,6,29,36,31,31,34,0,0,0,0,0,0,0,0,0,0,-20,0,-45,0,-22,0,-22,0,-20,0,-20,0]} 1. e4 {[%emt 0:00:03]} e5 {[%emt 0:00:05]} 2. Nf3 {[%emt 0:00:06]} Nc6 {[%emt 0:00:04]} 3. Bb5 {[%emt 0:00:07][%cal Bf1b5,Bb5a4,Ba4b3][%mdl 32]} a6 {[%emt 0:00:05]} 4. Ba4 {[%emt 0:00:08]} Nf6 {[%emt 0:00:04]} 5. O-O {[%emt 0:00:14]} Be7 {[%emt 0:00:09]} 6. d3 {[%emt 0:08:14]} b5 {[%emt 0:00:28]} 7. Bb3 {[%emt 0:00:02]} d6 {[%emt 0:00:09]} 8. a3 {[%emt 0:00:46]} O-O {[%emt 0:01:02]} 9. Nc3 {[%emt 0:00:13]} Na5 {[%emt 0:00:40]} 10. Ba2 {[%emt 0:02:17]} Be6 {[%emt 0:00:13]} 11. b4 {[%emt 0:00:34]} Bxa2 {[%emt 0:00:10]} 12. Rxa2 {[%emt 0:01:29]} Nc6 {[%emt 0:00:11]} 13. Bg5 {[%emt 0:00:23]} h6 {[%emt 0:00:19]} 14. Bxf6 {[%emt 0:01:19]} Bxf6 {[%emt 0:00:03]} 15. Nd5 {[%emt 0:00:14]} Nd4 {[%emt 0:00:07]} 16. c4 {[%emt 0:38:37]} Ne6 {[%emt 0:15:32]} 17. cxb5 {[%emt 0:18:14]} axb5 {[%emt 0:00:06]} 18. Qc2 {[%emt 0:00:06]} Ra6 {[%emt 0:08:39]} 19. a4 {[%emt 0:00:37]} c6 {[%emt 0:07:53]} 20. Ne3 {[%emt 0:01:58]} Bg5 {[%emt 0:06:24]} 21. a5 {[%emt 0:06:48]} Qd7 {[%emt 0:13:20]} 22. Qb3 {[%emt 0:04:33]} Rfa8 {[%emt 0:03:47]} 23. Nc2 {[%emt 0:02:01] The position is equal.} Nf4 {[%emt 0:06:03]} 24. Ne3 {[%emt 0:02:33]} Ne6 {[%emt 0:00:08]} 25. Nc2 {[%emt 0:00:10]} Nf4 {[%emt 0:00:06]} 26. Ne3 {[%emt 0:00:43]} Ne6 {[%emt 0:07:54] Weighted Error Value: White=0.11 (very precise) /Black=0.12 (very precise) .  Inaccurate:     	White=2     	Black=1      OK:         	White=8     	Black=7} 1/2-1/2

[Event "45th FIDE Olympiad 2024"]
[Site "Budapest"]
[Date "2024.09.13"]
[Round "3.6"]
[White "Kulpruethanon, Thanadon"]
[Black "Yeung, Jason"]
[Result "1-0"]
[ECO "E04"]
[WhiteElo "2286"]
[BlackElo "1993"]
[Annotator "RC"]
[PlyCount "49"]
[EventDate "2024.09.05"]
[EventType "team-tourn"]
[EventCountry "HUN"]
[SourceTitle "playchess.com"]
[Source "ChessBase"]
[SourceQuality "1"]
[WhiteTeam "Thailand"]
[BlackTeam "Suriname"]
[WhiteTeamCountry "THA"]
[BlackTeamCountry "SUR"]
[TimeControl "40/5400+30:1800+30"]

1. d4 Nf6 2. c4 e6 3. Nf3 d5 4. g3 dxc4 5. Bg2 Nc6 6. Qa4 Bb4+ 7. Bd2 Nd5 8. Bxb4 Ndxb4 9. O-O Rb8 10. Nc3 a6 11. Ne5 O-O 12. Nxc6 bxc6 13. a3 Nd5 14. Qxc4 Rxb2 15. Rfb1 Rd2 16. e3 Nb6 17. Qf1 f5 18. Qc1 Rd3 19. Qc2 Rxc3 20. Qxc3 Bd7 21. Bxc6 Qe8 22. Bg2 Qb8 23. Rc1 c6 24. Rab1 Qc7 25. Qa5 1-0

[Event "45th FIDE Olympiad 2024"]
[Site "Budapest"]
[Date "2024.09.13"]
[Round "3.7"]
[White "Horvath, Dominik"]
[Black "Sjugirov, Sanan"]
[Result "1/2-1/2"]
[ECO "C13"]
[WhiteElo "2559"]
[BlackElo "2644"]
[Annotator "TA"]
[PlyCount "176"]
[EventDate "2024.09.05"]
[EventType "team-tourn"]
[EventCountry "HUN"]
[SourceTitle "playchess.com"]
[Source "ChessBase"]
[SourceQuality "1"]
[WhiteTeam "Austria"]
[BlackTeam "Hungary"]
[WhiteTeamCountry "AUT"]
[BlackTeamCountry "HUN"]
[TimeControl "40/5400+30:1800+30"]

{[%evp 20,176,0,0,0,0,0,0,0,0,43,47,40,0,0,-37,0,0,0,0,16,18,15,16,19,15,15,10,11,0,5,7,64,61,60,65,85,50,75,58,86,0,0,0,0,0,0,0,0,0,0,0,0,0,0,0,0,0,0,0,0,0,0,0,0,0,0,0,0,0,0,0,0,0,0,-7,0,0,0,-7,0,0,0,-8,-8,-8,-8,-8,0,-6,0,-8,0,0,0,0,0,0,0,0,0,0,0,0,0,0,0,0,0,0,0,0,0,0,0,0,0,0,0,0,0,0,0,0,0,0,0,0,0,0,0,0,0,0,0,0,0,0,0,0,0,0,0,0,0,0,0,0,0,0,0,0,0,0,0,0,0,0,0]} 1. e4 {[%emt 0:00:12]} e6 {[%emt 0:00:26]} 2. d4 {[%emt 0:00:10]} d5 {[%emt 0:00:06]} 3. Nc3 {[%emt 0:00:43]} Nf6 {[%emt 0:00:15]} 4. Bg5 {[%emt 0:00:37]} dxe4 {[%emt 0:00:16]} 5. Nxe4 {[%emt 0:00:08]} Be7 {[%emt 0:00:25]} 6. Nxf6+ {[%emt 0:00:07]} Bxf6 {[%emt 0:00:19]} 7. Bxf6 {[%emt 0:00:05]} Qxf6 {[%emt 0:00:09]} 8. Nf3 {[%emt 0:00:04]} O-O {[%emt 0:00:34]} 9. Qd2 {[%emt 0:00:06]} Rd8 {[%emt 0:51:24]} 10. Bd3 {[%emt 0:04:17]} Nc6 {[%emt 0:13:20]} 11. O-O-O {[%emt 0:00:16]} g6 {[%emt 0:00:25]} 12. Qh6 {[%emt 0:08:01]} Nxd4 {[%emt 0:08:08]} 13. Ng5 {[%emt 0:00:06]} Qg7 {[%emt 0:00:14]} 14. Qh4 {[%emt 0:00:04][%cal Og5h7] [#] And now Nxh7! would win.} Nc6 {[%emt 0:00:30]} 15. g4 {[%emt 0:26:23][%mdl 1024] White has compensation.} b6 {[%emt 0:09:39]} 16. f4 {[%emt 0:04:16]} (16. Ne4 $5) 16... Bb7 $1 {[%emt 0:02:09][%cal Bc8b7,Bb7g2,Bg2f3][%mdl 32]} 17. Be4 {[%emt 0:16:48]} Rd6 {[%emt 0:02:35]} 18. Bg2 {[%emt 0:07:28]} Kh8 {[%emt 0:05:55]} 19. Ne4 {[%emt 0:04:11]} Nd4 {[%emt 0:00:31]} (19... Na5 $5) 20. Nxd6 {[%emt 0:12:38]} Bxg2 {[%emt 0:00:05]} 21. Rhe1 $1 {[%emt 0:07:21]} ({Wrong is} 21. Rxd4 $2 Qxd4 (21... Bxh1 22. Nb5 $15) 22. Nxf7+ Kg8 $19 (22... Kg7 23. Ng5 $15)) 21... cxd6 {[%emt 0:00:11]} 22. Qf2 $1 {[%emt 0:00:06][%csl LRd4,LRg2]} Nxc2 $1 {[%emt 0:01:06]} 23. Qxc2 {[%emt 0:02:16]} Bf3 {[%emt 0:01:12][%csl LRd1,LRg4]} 24. Rxd6 {[%emt 0:00:43] Hoping for Qc7.} Bxg4 {[%emt 0:00:05]} 25. Re3 {[%emt 0:04:15]} Qf6 {[%emt 0:00:29]} (25... Kg8 $11) 26. Qc3 $14 {[%emt 0:00:11] White is more active.} Kg7 {[%emt 0:00:16] Black is weak on the dark squares} 27. Kd2 {[%emt 0:00:46]} (27. Qxf6+ {simplifies} Kxf6 28. Rd7 Kg7 29. Rc7) 27... h6 {[%emt 0:00:25]} 28. h4 {[%emt 0:00:44]} (28. Qxf6+ {simplifies} Kxf6 29. Ra3 Ke7 30. Rd4) 28... Bf5 {[%emt 0:01:04]} 29. b4 {[%emt 0:01:06]} (29. Qxf6+ {simplifies} Kxf6 30. Rc3 g5 31. fxg5+ hxg5 32. hxg5+ Kxg5 33. Rc7) 29... Rh8 {[%emt 0:01:45]} 30. Rg3 {[%emt 0:00:25]} (30. Qxf6+ $16 Kxf6 31. Rd7) 30... Qxc3+ $11 {[%emt 0:00:17] The position is equal.} 31. Rxc3 {[%emt 0:00:06][%mdl 4096] Endgame. KRR-KRB} g5 $1 {[%emt 0:00:03]} 32. hxg5 {[%emt 0:00:11]} hxg5 {[%emt 0:00:03]} 33. fxg5 {[%emt 0:00:03]} Rh2+ {[%emt 0:00:24]} 34. Ke3 {[%emt 0:00:07]} Rxa2 {[%emt 0:00:05]} 35. Rc7 {[%emt 0:01:27]} Ra4 {[%emt 0:01:08]} 36. Rd4 {[%emt 0:01:32]} a5 {[%emt 0:00:23]} 37. Rb7 {[%emt 0:00:16]} axb4 {[%emt 0:00:26]} 38. Rxb6 {[%emt 0:00:03]} Ra1 {[%emt 0:00:16]} 39. Rbxb4 {[%emt 0:01:10]} Rg1 {[%emt 0:00:06]} 40. Rd2 {[%emt 0:00:30]} Rg3+ {[%emt 0:00:19]} 41. Kf2 {[%emt 0:30:24]} Rxg5 {[%emt 0:30:04]} 42. Rb6 {[%emt 0:00:00]} Kf6 {[%emt 0:00:00]} 43. Ke3 {[%emt 0:00:00]} Rg3+ {[%emt 0:00:00]} 44. Kd4 {[%emt 0:00:00]} Rg4+ {[%emt 0:00:00]} 45. Ke3 {[%emt 0:00:00]} Kg5 {[%emt 0:00:00]} 46. Rd7 {[%emt 0:00:00]} Bg6 {[%emt 0:00:00]} 47. Re7 {[%emt 0:00:00]} Re4+ {[%emt 0:00:00]} 48. Kf3 {[%emt 0:00:00]} Re5 {[%emt 0:00:00]} 49. Kf2 {[%emt 0:00:00]} Bh5 {[%emt 0:00:00]} 50. Rc6 {[%emt 0:00:00]} Re2+ {[%emt 0:00:00]} 51. Kf1 {[%emt 0:00:00]} Re4 {[%emt 0:00:00]} 52. Kf2 {[%emt 0:00:00]} e5 {[%emt 0:00:00]} 53. Kg3 {[%emt 0:00:00]} Kf5 {[%emt 0:00:00]} 54. Rc2 {[%emt 0:00:00]} Kg5 {[%emt 0:00:00]} 55. Rc6 {[%emt 0:00:00]} Re3+ {[%emt 0:00:00]} 56. Kf2 {[%emt 0:00:00]} Re2+ {[%emt 0:00:00]} 57. Kg3 $1 {[%emt 0:00:00]} Kf5 {[%emt 0:00:00]} 58. Rc1 {[%emt 0:00:00]} Kg5 {[%emt 0:00:27]} 59. Rc6 {[%emt 0:00:00]} f6 {[%emt 0:00:30]} 60. Rb6 {[%emt 0:00:00]} Re3+ {[%emt 0:02:26]} 61. Kf2 {[%emt 0:00:00]} Re4 {[%emt 0:00:19]} 62. Rg7+ {[%emt 0:00:00]} Kf5 {[%emt 0:00:10]} 63. Rg8 {[%emt 0:00:00]} Rf4+ {[%emt 0:00:59]} 64. Kg3 {[%emt 0:00:00]} Bf7 {[%emt 0:01:56]} 65. Rf8 {[%emt 0:00:00]} Kg6 {[%emt 0:00:09]} 66. Rd8 {[%emt 0:00:00]} Kg5 {[%emt 0:00:44]} 67. Rd7 {[%emt 0:01:34]} Bg6 {[%emt 0:01:38]} 68. Re7 {[%emt 0:01:54]} Be4 {[%emt 0:01:08]} 69. Rg7+ {[%emt 0:00:05]} Kf5 {[%emt 0:00:09]} 70. Rf7 {[%emt 0:02:03]} Rg4+ {[%emt 0:00:04]} 71. Kf2 {[%emt 0:00:11]} Rg6 {[%emt 0:00:15]} 72. Rf8 {[%emt 0:01:17]} Rh6 {[%emt 0:00:45]} 73. Kg3 {[%emt 0:00:06]} Bd5 {[%emt 0:00:39]} 74. Rd6 {[%emt 0:00:12]} Be6 {[%emt 0:00:24]} 75. Re8 {[%emt 0:00:10]} Bc4 {[%emt 0:00:23]} 76. Rf8 {[%emt 0:00:06]} Rg6+ {[%emt 0:01:34]} 77. Kf2 {[%emt 0:00:19]} Bb5 {[%emt 0:01:59]} 78. Rb6 {[%emt 0:00:03]} Bd3 {[%emt 0:00:11]} 79. Ke3 {[%emt 0:00:16]} Bc4 {[%emt 0:00:15]} 80. Kf2 {[%emt 0:00:14]} Bd5 {[%emt 0:00:18]} 81. Rd6 {[%emt 0:00:28]} Bh1 {[%emt 0:00:18]} 82. Rb6 {[%emt 0:00:10]} Rh6 {[%emt 0:00:34]} 83. Kg3 {[%emt 0:00:18]} Be4 {[%emt 0:00:18]} 84. Rd6 {[%emt 0:00:50]} Kg5 {[%emt 0:00:25]} 85. Rb6 {[%emt 0:00:30]} Bf5 {[%emt 0:01:11]} 86. Kf2 {[%emt 0:02:17]} Bg4 {[%emt 0:00:55]} 87. Rg8+ {[%emt 0:00:50]} Kf5 {[%emt 0:00:13]} 88. Rf8 {[%emt 0:00:05]} Rg6 {[%emt 0:01:07] Weighted Error Value: White=0.07 (flawless) /Black=0.06 (flawless) .  Mistake:       	White=1     	Black=1      Inaccurate:     	White=3     	Black=3      OK:         	White=26    	Black=27     Best:        	White=3     	Black=4      Strong:       	White=2     	Black=3} 1/2-1/2

[Event "45th FIDE Olympiad 2024"]
[Site "Budapest"]
[Date "2024.09.13"]
[Round "3.7"]
[White "Kalidjo, Imaan"]
[Black "Bodemar, Jonathan"]
[Result "0-1"]
[ECO "C11"]
[WhiteElo "1934"]
[BlackElo "2195"]
[Annotator "RC"]
[PlyCount "64"]
[EventDate "2024.09.05"]
[EventType "team-tourn"]
[EventCountry "HUN"]
[SourceTitle "playchess.com"]
[Source "ChessBase"]
[SourceQuality "1"]
[WhiteTeam "Suriname"]
[BlackTeam "Thailand"]
[WhiteTeamCountry "SUR"]
[BlackTeamCountry "THA"]
[TimeControl "40/5400+30:1800+30"]

1. e4 e6 2. d4 d5 3. Nc3 Nf6 4. e5 Nfd7 5. f4 c5 6. Nf3 Nc6 7. Be3 Be7 8. Be2 O-O 9. Qd2 b6 10. O-O-O c4 11. g4 b5 12. f5 Qa5 13. Bg5 b4 14. Nb1 Qxa2 15. f6 Nxf6 16. exf6 gxf6 17. Bf4 Ba6 18. Qe3 c3 19. bxc3 Bxe2 20. Qxe2 bxc3 21. Nxc3 Qa3+ 22. Kd2 Bb4 23. Ke1 Qxc3+ 24. Kf2 Rfe8 25. Rd3 Qc4 26. h4 e5 27. Bxe5 fxe5 28. Qe3 Bf8 29. Qg5+ Bg7 30. h5 h6 31. Qf5 Qxc2+ 32. Kg3 Ne7 0-1

[Event "45th FIDE Olympiad 2024"]
[Site "Budapest"]
[Date "2024.09.13"]
[Round "3.8"]
[White "Gledura, Benjamin"]
[Black "Blohberger, Felix"]
[Result "1-0"]
[ECO "C65"]
[WhiteElo "2628"]
[BlackElo "2520"]
[Annotator "RC"]
[PlyCount "57"]
[EventDate "2024.09.05"]
[EventType "team-tourn"]
[EventCountry "HUN"]
[SourceTitle "playchess.com"]
[Source "ChessBase"]
[SourceQuality "1"]
[WhiteTeam "Hungary"]
[BlackTeam "Austria"]
[WhiteTeamCountry "HUN"]
[BlackTeamCountry "AUT"]
[TimeControl "40/5400+30:1800+30"]

1. e4 {[%emt 0:00:04]} e5 {[%emt 0:00:09]} 2. Nf3 {[%emt 0:00:08]} Nc6 {[%emt 0:00:06]} 3. Bb5 {[%emt 0:00:14]} Nf6 {[%emt 0:00:29]} 4. d3 {[%emt 0:00:19]} Bc5 {[%emt 0:01:07]} 5. Bxc6 {[%emt 0:00:35]} dxc6 {[%emt 0:00:07]} 6. Nbd2 {[%emt 0:00:17]} Be6 {[%emt 0:04:03]} 7. O-O {[%emt 0:00:47]} Bd6 {[%emt 0:00:42]} 8. Nb3 {[%emt 0:00:46]} a5 {[%emt 0:04:14]} 9. Qe1 {[%emt 0:01:55]} a4 {[%emt 0:02:14]} 10. Na5 {[%emt 0:00:23]} Qc8 {[%emt 0:12:48]} 11. Ng5 {[%emt 0:00:44]} Bd7 {[%emt 0:12:45]} 12. Nc4 {[%emt 0:19:39]} O-O {[%emt 0:06:39]} 13. f4 {[%emt 0:09:52]} Bc5+ {[%emt 0:07:06]} 14. Be3 {[%emt 0:10:17]} Bxe3+ {[%emt 0:00:15]} 15. Nxe3 {[%emt 0:04:36]} exf4 {[%emt 0:00:57]} 16. Rxf4 {[%emt 0:00:14]} h6 {[%emt 0:05:45]} 17. Nf3 {[%emt 0:01:21]} Ng4 {[%emt 0:02:06]} 18. Nf5 {[%emt 0:04:25]} Bxf5 {[%emt 0:00:21]} 19. Rxf5 {[%emt 0:00:14]} Re8 {[%emt 0:07:27]} 20. Qg3 {[%emt 0:08:49]} Ne3 {[%emt 0:02:49]} 21. Nd4 {[%emt 0:01:48]} Nxf5 {[%emt 0:04:18]} 22. Nxf5 {[%emt 0:01:25]} g6 {[%emt 0:00:09]} 23. Rf1 {[%emt 0:00:29]} Qd8 {[%emt 0:12:23]} 24. Nxh6+ {[%emt 0:01:33]} Kg7 {[%emt 0:02:23]} 25. Rxf7+ {[%emt 0:00:16]} Kxh6 {[%emt 0:00:06]} 26. Qh3+ {[%emt 0:00:17]} Kg5 {[%emt 0:00:07]} 27. Qe3+ {[%emt 0:00:08]} Kh5 {[%emt 0:00:20]} 28. Rh7+ {[%emt 0:00:07]} Kg4 {[%emt 0:00:03]} 29. h3# {[%emt 0:00:07]} 1-0

[Event "45th FIDE Olympiad 2024"]
[Site "Budapest"]
[Date "2024.09.13"]
[Round "3.8"]
[White "Arunnuntapanich, Tinnakrit"]
[Black "Kalka, Shiva"]
[Result "1-0"]
[ECO "D53"]
[WhiteElo "2064"]
[BlackElo "1849"]
[Annotator "NA RC"]
[PlyCount "103"]
[EventDate "2024.09.05"]
[EventType "team-tourn"]
[EventCountry "HUN"]
[SourceTitle "playchess.com"]
[Source "ChessBase"]
[SourceQuality "1"]
[WhiteTeam "Thailand"]
[BlackTeam "Suriname"]
[WhiteTeamCountry "THA"]
[BlackTeamCountry "SUR"]
[TimeControl "40/5400+30:1800+30"]

1. d4 Nf6 2. c4 e6 3. Nc3 d5 4. Bg5 Be7 5. e3 h6 6. Bh4 O-O 7. cxd5 Nxd5 8. Bxe7 Qxe7 9. Nf3 Rd8 10. Rc1 Nxc3 11. Rxc3 c6 12. Qb3 Nd7 13. Bc4 b6 14. O-O Bb7 15. Rfc1 c5 16. Be2 Rac8 17. Qa3 a5 18. Ne1 e5 19. Bf3 Bxf3 20. Nxf3 e4 21. Nd2 Qe6 22. Qb3 Qxb3 23. Nxb3 a4 24. Nd2 f5 25. f3 Nf6 26. fxe4 fxe4 27. Nf1 Rb8 28. dxc5 bxc5 29. R1c2 Rd5 30. Rc4 a3 31. b3 Rd1 32. Rc1 Rbd8 33. h3 Rxc1 34. Rxc1 Nd5 35. Rxc5 Nb4 36. Ra5 Nc2 37. Rc5 Nb4 38. Rc4 Nxa2 39. Ra4 Nc1 40. Rxa3 Rd1 41. b4 Kf7 42. b5 Ke6 43. Ra6+ Ke5 44. b6 Rd8 45. b7 Rb8 46. Rc6 Nd3 47. Rc7 g6 48. Ng3 h5 49. h4 Nb4 50. Rc5+ Nd5 51. Rb5 Ke6 52. Nxe4 1-0